bitfinex-derivatives/quotes_ETHF0:USTF0_20250321
["timestamp","ask_amount","ask_price","bid_price","bid_amount"]
[1742530084446,9.2376,1981.4,1981.3,1.00992]
[1742530084648,10.24747,1981.4,1981.3,1.00992]
[1742530085045,7.02547,1981.4,1981.3,2.37692]
[1742530085255,9.2376,1981.4,1981.3,2.37692]
[1742530086852,8.5587,1981.4,1981.3,2.37692]
[1742530087057,3.8762,1981.6,1981.5,1.00982]
[1742530087259,4.5361,1981.6,1981.5,1.00982]
[1742530087457,1.3141,1981.6,1981.5,1.00982]
[1742530087658,1.3141,1981.6,1981.5,3.04942]
[1742530088656,4.5361,1981.6,1981.3,1.00988]
[1742530088858,1.00987,1981.4,1981.3,1.3527]
[1742530089060,1.00993,1981.3,1981.2,1.00993]
[1742530089256,2.38133,1981.3,1981.2,1.00993]
[1742530089557,5.58913,1981.3,1981.2,1.00997]
[1742530090059,1.00997,1981.2,1981.1,1.3527]
[1742530090260,2.7488,1981.2,1981.1,2.3627]
[1742530091361,3.75877,1981.2,1981.1,2.3627]
[1742530091569,2.7488,1981.2,1981.1,2.3627]
[1742530091758,3.75877,1981.2,1981.1,2.3627]
[1742530091959,2.7488,1981.2,1981.1,2.3627]
[1742530092261,3.75877,1981.2,1981.1,2.3627]
[1742530092461,2.7488,1981.2,1981.1,2.3627]
[1742530095658,3.75877,1981.2,1981.1,1.3527]
[1742530096155,6.98077,1981.2,1981.1,1.3527]
[1742530096563,1.01004,1981.1,1980.9,2.40618]
[1742530096861,2.32124,1981.1,1981.0,1.3272]
[1742530097071,2.32124,1981.1,1980.9,1.01008]
[1742530097264,1.3112,1981.0,1980.9,2.33728]
[1742530097465,4.5332,1981.0,1980.9,2.33728]
[1742530099869,3.222,1981.0,1980.9,2.33728]
[1742530100165,1.3674,1981.1,1981.0,1.01007]
[1742530100371,1.3674,1981.1,1981.0,2.34687]
[1742530103373,3.222,1981.2,1981.1,1.01002]
[1742530103574,3.222,1981.2,1981.1,2.34582]
[1742530103773,3.2078,1981.3,1981.2,1.00997]
[1742530103979,3.2078,1981.5,1981.2,2.34577]
[1742530104167,6.4298,1981.5,1981.4,1.00987]
[1742530104667,7.735,1981.5,1981.4,1.00987]
[1742530104867,7.735,1981.5,1981.4,2.34567]
[1742530105068,5.52282,1981.5,1981.4,2.34567]
[1742530105567,1.3052,1981.5,1981.4,2.34567]
[1742530110876,3.8781,1981.6,1981.5,1.00982]
[1742530111077,5.1906,1981.6,1981.5,2.36252]
[1742530114275,6.20036,1981.6,1981.5,2.36252]
[1742530114578,5.1906,1981.6,1981.5,2.36252]
[1742530115472,3.21538246,1981.7,1981.6,1.00976]
[1742530115672,0.00758246,1981.7,1981.6,3.12406]
[1742530115879,1.01729246,1981.7,1981.6,1.4087]
[1742530116479,7.44609246,1981.7,1981.6,1.4087]
[1742530118979,1.00983,1981.5,1981.3,0.6682]
[1742530119171,1.3617,1981.6,1981.5,1.00982]
[1742530119878,2.3715,1981.6,1981.5,1.00982]
[1742530122676,2.3715,1981.6,1981.5,2.38232]
[1742530126485,6.43638246,1981.7,1981.6,1.00976]
[1742530126686,6.43638246,1981.7,1981.6,3.06586]
[1742530127577,0.00758246,1981.7,1981.6,3.06586]
[1742530127784,1.01729246,1981.7,1981.6,3.06586]
[1742530128787,0.00758246,1981.7,1981.6,3.06586]
[1742530129289,1.01729246,1981.7,1981.6,3.06586]
[1742530129682,0.00758246,1981.7,1981.6,3.06586]
[1742530137390,0.00758246,1981.7,1981.6,2.40006]
[1742530137590,1.01729246,1981.7,1981.6,2.40006]
[1742530138593,0.00758246,1981.7,1981.6,2.40006]
[1742530138793,1.29808246,1981.7,1981.6,2.40006]
[1742530139696,2.30779246,1981.7,1981.6,2.40006]
[1742530140090,1.29808246,1981.7,1981.6,2.40006]
[1742530140394,2.30779246,1981.7,1981.6,2.40006]
[1742530141890,1.29808246,1981.7,1981.6,2.40006]
[1742530152603,2.52381,1982.1,1981.9,1.00961]
[1742530152604,1.3569,1982.0,1981.9,1.00961]
[1742530152807,4.5647,1982.1,1982.0,1.00956]
[1742530153606,4.5647,1982.1,1982.0,1.65816]
[1742530154901,1.3569,1982.1,1982.0,1.65816]
[1742530155301,5.80814474,1982.2,1982.1,1.00951]
[1742530155505,3.2078,1982.5,1982.4,1.00936]
[1742530155805,5.9191,1982.7,1982.6,1.00926]
[1742530156001,6.4278,1982.9,1982.8,1.00915]
[1742530156200,8.4321,1982.9,1982.8,1.00915]
[1742530156711,5.2243,1982.9,1982.8,1.00915]
[1742530158313,0.00758246,1983.0,1982.9,1.0091]
[1742530159208,1.33038246,1983.0,1982.9,2.3092]
[1742530159403,1.33038246,1983.0,1982.5,3.8896]
[1742530159599,4.2169,1982.9,1982.8,1.3001]
[1742530159813,4.2169,1982.9,1982.8,2.30925]
[1742530160508,4.2169,1982.9,1982.8,1.3001]
[1742530160709,4.2169,1982.9,1982.8,2.30925]
[1742530160906,6.4278,1982.9,1982.5,0.6696]
[1742530161105,1.00926,1982.6,1982.5,1.00928]
[1742530161308,6.4278,1982.7,1982.4,1.3149]
[1742530161613,3.02059,1982.6,1982.5,1.00929]
[1742530161809,3.02059,1982.6,1982.5,1.00931]
[1742530162115,1.00946,1982.2,1982.1,1.00948]
[1742530162307,1.00955,1982.1,1981.9,1.01717246]
[1742530162615,3.71475,1982.1,1982.0,1.00956]
[1742530162816,6.93375,1982.1,1981.9,2.33206246]
[1742530163315,5.9242,1982.1,1982.0,1.00956]
[1742530163615,3.219,1982.1,1982.0,2.37706]
[1742530163812,5.50856,1982.4,1982.3,1.00941]
[1742530164212,5.50856,1982.4,1982.1,0.7091]
[1742530164412,5.50856,1982.4,1982.2,2.37692]
[1742530164613,5.50856,1982.4,1982.3,1.00941]
[1742530164808,5.58564,1982.5,1982.3,1.00941]
[1742530165118,5.58564,1982.5,1982.4,1.3675]
[1742530165311,6.87704,1982.5,1982.4,1.3675]
[1742530166314,3.65804,1982.5,1982.4,1.3675]
[1742530169921,3.65804,1982.5,1982.4,2.37686]
[1742530170320,3.65804,1982.5,1982.4,1.3675]
[1742530171317,6.86584,1982.5,1982.4,1.3675]
[1742530171717,1.00939,1982.4,1982.2,1.00943]
[1742530171918,2.39049,1982.4,1982.3,1.398]
[1742530172422,5.60949,1982.4,1982.3,1.398]
[1742530174617,5.60949,1982.4,1982.3,2.40741]
[1742530174820,5.60949,1982.4,1982.3,1.398]
[1742530175023,4.6001,1982.4,1982.3,2.40741]
[1742530175326,2.39046,1982.4,1982.3,1.398]
[1742530175525,1.00945,1982.3,1982.1,1.71858]
[1742530175728,2.42655,1982.3,1982.1,2.40188]
[1742530176026,2.42655,1982.3,1982.2,1.3924]
[1742530176329,1.00951,1982.1,1981.9,3.21538246]
[1742530176519,1.00951,1982.1,1982.0,1.3924]
[1742530177220,1.00951,1982.1,1982.0,2.40193]
[1742530178421,1.00947,1982.2,1982.0,2.40192]
[1742530178624,3.219,1982.2,1982.1,2.40191]
[1742530183229,4.5651,1982.5,1982.1,2.40191]
[1742530183230,4.5651,1982.5,1982.4,1.00936]
[1742530183427,7.7841,1982.5,1982.4,1.00936]
[1742530183627,6.4268,1982.5,1982.4,1.00936]
[1742530183934,3.2078,1982.5,1982.4,1.00936]
[1742530184228,3.2078,1982.5,1982.4,1.65146]
[1742530185134,4.21704,1982.7,1982.5,1.00928]
[1742530185330,7.43604,1982.7,1982.6,1.4162]
[1742530186326,7.43604,1982.7,1982.6,2.42546]
[1742530187430,4.21704,1982.7,1982.6,2.42546]
[1742530187728,7.43604,1982.7,1982.6,2.42546]
[1742530188434,6.4268,1982.7,1982.6,2.42546]
[1742530188636,7.7901,1982.7,1982.6,2.42546]
[1742530189534,8.7993,1982.7,1982.6,2.42546]
[1742530191136,2.3725,1982.7,1982.6,2.42546]
[1742530192434,1.3077,1982.8,1982.7,1.0092]
[1742530192734,2.6026,1982.8,1982.7,2.3904]
[1742530193927,1.9493,1982.8,1982.7,2.3904]
[1742530194136,1.2949,1982.8,1982.7,2.3904]
[1742530194327,6.4268,1982.9,1982.8,1.00915]
[1742530194530,8.7272,1982.9,1982.8,2.33825]
[1742530195936,8.7272,1982.9,1982.8,1.3291]
[1742530196134,8.7272,1982.9,1982.8,2.33825]
[1742530197031,7.7181,1982.9,1982.8,2.33825]
[1742530197536,4.4991,1982.9,1982.8,2.33825]
[1742530198535,5.5082,1982.9,1982.8,2.33825]
[1742530198737,1.2913,1982.9,1982.8,2.33825]
[1742530204442,4.59098246,1983.0,1982.9,1.0091]
[1742530204640,5.99198246,1983.0,1982.9,2.4253]
[1742530205438,2.77298246,1983.0,1982.9,3.1093]
[1742530208742,2.06248246,1983.0,1982.9,3.1093]
[1742530209436,2.74038246,1983.0,1982.9,3.1093]
[1742530210027,0.00758246,1983.0,1982.9,3.1093]
[1742530212144,1.42308246,1983.0,1982.9,3.1093]
[1742530212643,1.42308246,1983.0,1982.9,2.4253]
[1742530212831,2.13388246,1983.0,1982.9,2.4253]
[1742530213035,3.14293246,1983.0,1982.9,2.4253]
[1742530213230,2.13388246,1983.0,1982.9,2.4253]
[1742530214236,3.14293246,1983.0,1982.9,2.4253]
[1742530214440,2.13388246,1983.0,1982.9,2.4253]
[1742530215646,3.14293246,1983.0,1982.9,2.4253]
[1742530215848,2.13388246,1983.0,1982.9,2.4253]
[1742530216848,3.14293246,1983.0,1982.9,1.4162]
[1742530217046,3.14293246,1983.0,1982.8,1.3401]
[1742530217047,1.0091,1982.9,1982.8,1.3401]
[1742530217342,1.0092,1982.7,1982.6,1.3401]
[1742530217744,1.0092,1982.7,1982.6,2.34936]
[1742530217947,2.52315,1982.6,1982.0,2.5239]
[1742530218152,3.2078,1982.4,1982.2,1.00942]
[1742530218447,4.2172,1982.4,1982.3,1.3401]
[1742530218649,7.4352,1982.4,1982.3,1.3401]
[1742530219042,1.00946,1982.2,1982.1,1.00949]
[1742530219243,4.22746,1982.2,1982.1,2.35579]
[1742530219649,3.218,1982.2,1982.1,2.35579]
[1742530220040,3.8998,1982.2,1982.1,2.35579]
[1742530222756,3.218,1982.2,1982.1,2.35579]
[1742530223049,4.21719,1982.4,1982.1,1.3463]
[1742530223237,4.21719,1982.4,1982.2,2.38036]
[1742530223437,4.21719,1982.4,1982.3,1.3709]
[1742530223641,7.43619,1982.4,1982.3,1.3709]
[1742530224646,4.21719,1982.4,1982.3,1.3709]
[1742530224847,0.6486,1982.5,1982.3,2.38031]
[1742530225047,3.219,1982.4,1982.3,2.38031]
[1742530225747,6.4268,1982.6,1982.5,1.00931]
[1742530226346,6.4268,1982.6,1982.5,2.30261]
[1742530227356,3.219,1982.6,1982.5,2.30261]
[1742530228445,4.22826,1982.6,1982.5,1.2933]
[1742530228651,8.73976,1982.6,1982.5,2.30261]
[1742530229354,8.73976,1982.6,1982.5,1.2933]
[1742530229650,8.73976,1982.6,1982.5,2.30261]
[1742530235958,8.73976,1982.6,1982.5,1.2933]
[1742530236654,1.00946,1982.2,1981.9,5.73936246]
[1742530236961,4.22843,1982.3,1982.2,1.00946]
[1742530237353,5.57883,1982.3,1982.2,1.00946]
[1742530237754,4.5694,1982.3,1982.2,1.00946]
[1742530237956,5.881,1982.3,1982.2,1.00946]
[1742530238457,3.219,1982.3,1982.2,1.00946]
[1742530239051,3.219,1982.3,1982.2,2.34306]
[1742530239452,4.5306,1982.3,1982.2,2.34306]
[1742530243168,5.54001,1982.3,1982.2,2.34306]
[1742530245076,5.54001,1982.3,1982.2,1.3336]
[1742530246273,5.54001,1982.3,1982.2,2.34306]
[1742530246870,5.54001,1982.3,1982.2,1.3336]
[1742530248170,5.54001,1982.3,1982.2,2.34306]
[1742530250776,4.5306,1982.3,1982.2,2.34306]
[1742530252169,5.54001,1982.3,1982.2,2.34306]
[1742530256479,5.54001,1982.3,1982.2,1.3336]
[1742530256881,5.54001,1982.3,1982.2,2.34306]
[1742530259386,5.54001,1982.3,1982.2,1.3336]
[1742530259784,1.00951,1982.1,1981.9,1.40628246]
[1742530259979,4.22851,1982.1,1982.0,1.3267]
[1742530260280,3.219,1982.1,1982.0,2.33626]
[1742530260992,4.22851,1982.1,1982.0,2.33626]
[1742530261183,3.219,1982.1,1982.0,2.33626]
[1742530262789,3.219,1982.3,1982.2,1.00946]
[1742530263490,3.219,1982.3,1982.2,1.67926]
[1742530263791,4.22841,1982.3,1982.2,1.67926]
[1742530263983,3.219,1982.3,1982.2,1.67926]
[1742530264187,5.5828,1982.4,1982.3,1.00941]
[1742530264379,5.5828,1982.4,1982.3,2.31491]
[1742530264684,8.8018,1982.4,1982.3,2.31491]
[1742530265187,2.375,1982.4,1982.3,2.31491]
[1742530265389,5.594,1982.4,1982.3,2.31491]
[1742530267391,1.00949,1982.2,1981.9,3.21538246]
[1742530267597,1.00949,1982.2,1982.1,1.00947]
[1742530267891,4.22849,1982.2,1982.1,1.00947]
[1742530268085,4.22849,1982.2,1982.1,2.38187]
[1742530268980,3.219,1982.2,1982.1,2.38187]
[1742530270894,4.22846,1982.2,1982.1,2.38187]
[1742530275490,4.22846,1982.2,1982.1,1.3724]
[1742530275794,4.22846,1982.2,1982.1,2.38191]
[1742530277299,3.219,1982.2,1982.1,2.38191]
[1742530277492,4.21724,1982.3,1982.2,1.00946]
[1742530277693,4.22844,1982.3,1982.2,2.41456]
[1742530277895,1.00944,1982.3,1982.2,2.41456]
[1742530278194,1.3656,1982.4,1982.3,1.00941]
[1742530278391,3.8841,1982.4,1982.3,2.39781]
[1742530278897,5.3045,1982.4,1982.3,2.39781]
[1742530280593,3.09486,1982.4,1982.3,2.39781]
[1742530282101,2.0855,1982.4,1982.3,2.39781]
[1742530283799,4.21713,1982.5,1982.4,1.00936]
[1742530284001,8.72013,1982.5,1982.4,2.29146]
[1742530284909,5.51233,1982.5,1982.4,2.29146]
[1742530285204,3.2078,1982.7,1982.4,1.2821]
[1742530285407,4.4918,1982.7,1982.6,1.00926]
[1742530285607,6.4268,1982.7,1982.6,1.00926]
[1742530285803,6.4268,1982.7,1982.6,2.32916]
[1742530286728,7.7674,1982.7,1982.6,2.32916]
[1742530287723,6.4268,1982.7,1982.6,2.32916]
[1742530288223,3.2078,1982.7,1982.6,2.32916]
[1742530288720,4.5484,1982.7,1982.6,2.32916]
[1742530288913,3.2078,1982.7,1982.6,2.32916]
[1742530289609,0.65378246,1983.0,1982.7,1.0092]
[1742530289813,1.95368246,1983.0,1982.9,1.0091]
[1742530290013,0.00758246,1983.0,1982.9,1.0091]
[1742530290209,0.00758246,1983.0,1982.9,2.3748]
[1742530290709,0.00758246,1983.0,1982.9,3.7037]
[1742530292821,1.3894,1983.3,1983.2,1.00895]
[1742530293024,2.6904,1983.3,1983.2,1.00895]
[1742530293420,1.9837,1983.3,1983.2,1.00895]
[1742530293619,1.9837,1983.3,1983.2,1.68055]
[1742530294523,1.9837,1983.3,1983.2,2.34475]
[1742530294918,1.301,1983.3,1983.2,2.34475]
[1742530295227,3.21285496,1983.4,1983.3,1.0089]
[1742530295418,3.21285496,1983.4,1983.3,2.4005]
[1742530296520,4.63115496,1983.4,1983.3,2.4005]
[1742530297926,1.42335496,1983.4,1983.3,2.4005]
[1742530298231,0.00505496,1983.4,1983.3,2.4005]
[1742530300125,0.6866,1983.9,1983.8,1.00865]
[1742530300427,1.69523,1983.9,1983.7,1.00867]
[1742530300626,0.6866,1983.9,1983.8,1.00865]
[1742530301025,1.69519,1983.9,1983.8,1.00865]
[1742530301426,1.9954,1983.9,1983.8,1.00865]
[1742530301932,3.00399,1983.9,1983.8,1.00865]
[1742530302132,1.00865,1983.8,1983.7,2.38286]
[1742530302333,1.3088,1983.8,1983.7,2.38286]
[1742530307736,2.31745,1983.8,1983.7,2.38286]
[1742530308637,2.31745,1983.8,1983.7,1.3742]
[1742530308835,1.3088,1983.8,1983.2,7.09256]
[1742530309035,3.1227,1983.7,1983.6,1.2914]
[1742530309736,6.3305,1983.7,1983.6,1.2914]
[1742530310336,1.00875,1983.6,1983.5,1.00877]
[1742530310536,3.09905,1983.6,1983.5,1.00877]
[1742530311241,3.09905,1983.6,1983.4,1.3947]
[1742530311436,1.4005,1983.5,1983.4,2.40355]
[1742530314337,0.6898,1983.6,1983.5,1.0088]
[1742530314537,0.7047,1983.7,1983.6,1.00875]
[1742530314737,1.7134,1983.7,1983.6,1.00875]
[1742530314938,3.0903,1983.7,1983.6,1.2908]
[1742530315129,1.00878,1983.6,1983.4,1.0088]
[1742530315439,1.00878,1983.6,1983.5,1.2908]
[1742530317838,1.0088,1983.5,1983.3,3.217]
[1742530318040,1.0088,1983.5,1983.4,1.3893]
[1742530319141,1.0089,1983.3,1983.2,4.21675]
[1742530319635,1.00888,1983.4,1983.2,4.21675]
[1742530319938,1.0089,1983.3,1983.2,4.21675]
[1742530320141,5.72935,1983.9,1983.2,2.52238]
[1742530320444,5.73764,1983.8,1983.4,1.00883]
[1742530320738,5.73764,1983.8,1983.3,3.06515]
[1742530320739,5.72956,1983.7,1983.3,3.06515]
[1742530320942,1.00883,1983.5,1983.4,2.39394]
[1742530321132,1.00877,1983.6,1983.5,1.0088]
[1742530321333,1.0088,1983.5,1983.4,1.00882]
[1742530322443,3.2078,1983.7,1983.3,3.8872]
[1742530322636,1.00877,1983.6,1983.5,1.00879]
[1742530322833,4.21654,1983.7,1983.6,1.00875]
[1742530323443,3.2078,1983.7,1983.6,1.00875]
[1742530323945,1.00865,1983.8,1983.7,1.0087]
[1742530324249,1.0087,1983.7,1983.6,1.00871]
[1742530324546,1.0087,1983.7,1983.6,1.70351]
[1742530326035,1.00867,1983.8,1983.6,1.70351]
[1742530328046,1.00868,1983.8,1983.6,1.70351]
[1742530328439,6.4238,1984.0,1983.6,0.6948]
[1742530328639,1.00863,1983.9,1983.6,0.6948]
[1742530328934,2.42733,1983.9,1983.6,0.6948]
[1742530329137,1.4187,1983.8,1983.7,1.0087]
[1742530330849,2.42735,1983.8,1983.6,0.6948]
[1742530331040,1.0087,1983.7,1983.6,1.70352]
[1742530331347,2.4274,1983.7,1983.6,1.70352]
[1742530331747,1.4187,1983.7,1983.6,1.70352]
[1742530333244,2.4274,1983.7,1983.6,1.00872]
[1742530333746,1.4187,1983.7,1983.6,1.00872]
[1742530335461,3.2078,1983.8,1983.7,1.0087]
[1742530335744,1.4021,1983.9,1983.8,1.00865]
[1742530336646,1.4021,1983.9,1983.8,1.71245]
[1742530339346,1.4021,1983.9,1983.8,3.06045]
[1742530339544,3.9156,1984.0,1983.9,1.00859]
[1742530339849,0.7078,1984.0,1983.9,2.35659]
[1742530340050,2.0386,1984.1,1984.0,1.00854]
[1742530340245,2.0386,1984.1,1984.0,2.35654]
[1742530341248,3.04709,1984.1,1984.0,1.348]
[1742530341443,1.00854,1984.0,1983.9,1.00858]
[1742530341643,1.3725,1984.0,1983.9,2.37428]
[1742530343244,1.3725,1984.0,1983.6,6.40275]
[1742530343449,0.646,1983.9,1983.8,1.00861]
[1742530343854,1.9637,1983.9,1983.8,1.00861]
[1742530345253,1.3177,1983.9,1983.8,1.00861]
[1742530345455,1.3177,1983.9,1983.8,1.69991]
[1742530345751,2.0128,1983.9,1983.8,1.69991]
[1742530347050,1.00865,1983.8,1983.7,1.3657]
[1742530347356,3.02955,1983.8,1983.7,2.3744]
[1742530347543,6.24555,1983.8,1983.7,2.3744]
[1742530351149,9.45335,1983.8,1983.7,2.3744]
[1742530351452,9.45335,1983.8,1983.7,1.3657]
[1742530354658,1.0087,1983.7,1983.6,1.00871]
[1742530354858,2.3788,1983.7,1983.6,1.00871]
[1742530355055,1.00875,1983.6,1983.5,1.3096]
[1742530355361,10.95971,1983.6,1983.0,8.94634]
[1742530355553,10.95971,1983.6,1983.3,1.3096]
[1742530355554,1.00885,1983.4,1983.3,1.3096]
[1742530355759,4.22485,1983.4,1983.3,1.3096]
[1742530356152,7.43265,1983.4,1983.3,1.3096]
[1742530356354,8.72075,1983.4,1983.3,1.3096]
[1742530361063,8.72075,1983.4,1983.3,2.3185]
[1742530361265,8.72075,1983.4,1983.3,1.3096]
[1742530366269,3.8517,1983.6,1983.5,1.0088]
[1742530366561,5.2711,1983.6,1983.5,1.0088]
[1742530366867,1.0088,1983.5,1983.4,3.02081]
[1742530367162,1.4112,1983.5,1983.4,3.02081]
[1742530371671,2.42,1983.5,1983.4,3.02081]
[1742530371966,2.42,1983.5,1983.4,1.3604]
[1742530372673,1.0089,1983.3,1983.2,2.37001]
[1742530373068,6.29099,1983.4,1983.3,1.0089]
[1742530373269,4.88319,1983.4,1983.3,2.37]
[1742530373568,8.09099,1983.4,1983.3,1.3611]
[1742530374472,8.09099,1983.4,1983.3,2.37]
[1742530374670,6.4238,1983.4,1983.3,2.37]
[1742530379867,3.2078,1983.6,1983.5,1.0088]
[1742530380171,6.4238,1983.6,1983.5,1.0088]
[1742530380572,6.4238,1983.6,1983.5,2.3758]
[1742530381774,3.2078,1983.6,1983.5,2.3758]
[1742530381979,6.4238,1983.6,1983.5,2.3758]
[1742530384375,7.43255,1983.6,1983.5,2.3758]
[1742530384583,6.4238,1983.6,1983.5,2.3758]
[1742530386270,7.43255,1983.6,1983.5,2.3758]
[1742530386570,8.13355,1983.6,1983.5,2.3758]
[1742530388180,6.4238,1983.6,1983.5,2.3758]
[1742530388376,3.2078,1983.6,1983.5,3.0769]
[1742530389678,1.70967,1983.8,1983.7,1.0087]
[1742530389679,4.91746,1983.8,1983.7,1.0087]
[1742530389881,8.4091,1983.8,1983.7,1.0087]
[1742530390082,0.645,1983.9,1983.8,1.00865]
[1742530390583,8.71664,1984.0,1983.9,1.00859]
[1742530390784,8.09704,1984.0,1983.9,1.00859]
[1742530391081,1.00859,1983.9,1983.8,1.2987]
[1742530391382,1.66369,1983.9,1983.8,1.2987]
[1742530393777,1.66369,1983.9,1983.8,2.30735]
[1742530394682,1.00867,1983.8,1983.7,1.00867]
[1742530394881,4.22467,1983.8,1983.7,1.00867]
[1742530395288,3.216,1983.8,1983.7,1.00867]
[1742530396383,3.216,1983.8,1983.7,2.35487]
[1742530399090,4.22465,1983.8,1983.7,2.35487]
[1742530399293,3.216,1983.8,1983.7,2.35487]
[1742530399494,4.22465,1983.8,1983.7,2.35487]
[1742530400184,7.43245,1983.8,1983.7,1.3462]
[1742530400584,1.00875,1983.6,1983.5,1.00876]
[1742530401081,0.40221286,1984.4,1983.5,2.5]
[1742530401283,3.2078,1984.7,1984.1,2.52112]
[1742530401487,3.2078,1984.5,1983.9,3.2078]
[1742530401689,4.5978,1984.4,1984.1,1.00848]
[1742530401887,4.5978,1984.4,1984.3,1.00839]
[1742530402086,4.5978,1984.4,1984.2,1.414]
[1742530402291,1.00839,1984.3,1984.2,1.414]
[1742530402687,1.00839,1984.3,1984.2,2.42244]
[1742530404197,3.2078,1984.3,1984.0,0.00756315]
[1742530404397,4.21629,1984.1,1984.0,0.00756315]
[1742530404798,5.57899,1984.1,1984.0,0.00756315]
[1742530407298,2.52153,1983.9,1983.5,0.6562]
[1742530407597,2.52153,1983.9,1983.5,2.29926]
[1742530407598,1.00878,1983.6,1983.5,2.29926]
[1742530407994,1.00878,1983.6,1983.5,1.2905]
[1742530408196,1.00885,1983.5,1983.1,3.82151]
[1742530408395,1.00885,1983.5,1983.4,1.00884]
[1742530408596,1.00885,1983.5,1983.3,2.32946]
[1742530408795,1.4152,1983.4,1983.3,2.32946]
[1742530408996,1.4152,1983.4,1983.3,1.00886]
[1742530409606,2.42405,1983.4,1983.3,1.00886]
[1742530411204,1.4152,1983.4,1983.3,1.00886]
[1742530411704,1.4152,1983.4,1983.1,1.30656315]
[1742530412008,1.00894,1983.3,1983.1,2.31553315]
[1742530412301,1.00895,1983.2,1983.1,1.30656315]
[1742530412498,1.00895,1983.2,1983.1,0.00756315]
[1742530413005,2.39865,1983.2,1983.1,0.00756315]
[1742530413801,2.39865,1983.2,1983.1,1.01656315]
[1742530414197,2.3673,1983.3,1983.2,1.00895]
[1742530414403,6.4718,1983.4,1983.3,1.0089]
[1742530414606,3.2078,1983.4,1983.3,1.0089]
[1742530415005,1.0088,1983.5,1983.3,1.6697]
[1742530415407,2.3644,1983.5,1983.3,1.6697]
[1742530415911,2.3644,1983.5,1983.4,1.00885]
[1742530420409,7.48658,1983.6,1983.5,1.0088]
[1742530421610,4.21658,1983.6,1983.5,1.0088]
[1742530422308,5.60868,1983.6,1983.5,1.0088]
[1742530422812,1.00881,1983.5,1983.4,1.00881]
[1742530424516,4.5999,1983.6,1983.3,0.6608]
[1742530424813,1.00895,1983.2,1983.1,1.01653315]
[1742530425410,3.08315,1983.2,1983.1,1.01653315]
[1742530426912,3.08315,1983.2,1983.1,0.00756315]
[1742530427109,3.08315,1983.2,1983.1,1.01656315]
[1742530427510,3.262,1983.3,1983.2,1.00895]
[1742530427716,3.262,1983.4,1983.2,0.673]
[1742530427911,3.262,1983.4,1983.3,1.00888]
[1742530428119,3.05894,1983.5,1983.3,1.00888]
[1742530428317,3.05894,1983.5,1983.4,1.00885]
[1742530428611,2.0501,1983.5,1983.3,0.6619]
[1742530428811,2.0501,1983.5,1983.4,2.29575]
[1742530429414,6.4688,1983.6,1983.5,1.0088]
[1742530429615,6.4688,1983.6,1983.5,3.0668]
[1742530430114,7.7693,1983.6,1983.5,3.0668]
[1742530431423,4.5083,1983.6,1983.5,3.0668]
[1742530434029,3.2078,1983.6,1983.5,3.0668]
[1742530434219,4.6144,1983.6,1983.5,3.0668]
[1742530437427,3.2078,1983.6,1983.5,3.0668]
[1742530439125,3.2078,1983.6,1983.5,2.3614]
[1742530439332,4.5499,1983.6,1983.5,2.3614]
[1742530440424,5.55865,1983.6,1983.5,1.3526]
[1742530441042,5.55865,1983.6,1983.5,2.3614]
[1742530441247,4.5499,1983.6,1983.5,2.3614]
[1742530441945,4.5499,1983.6,1983.5,3.0566]
[1742530444647,5.55865,1983.6,1983.5,3.0566]
[1742530444944,5.55865,1983.6,1983.5,1.3526]
[1742530445642,5.55865,1983.6,1983.5,2.3614]
[1742530451147,5.55865,1983.6,1983.5,1.3526]
[1742530454148,5.55865,1983.6,1983.5,2.3614]
[1742530455857,4.5499,1983.6,1983.5,2.3614]
[1742530456051,3.2078,1983.6,1983.5,2.3614]
[1742530457250,4.5035,1983.6,1983.5,2.3614]
[1742530458360,5.51225,1983.6,1983.5,2.3614]
[1742530459159,4.5035,1983.6,1983.5,2.3614]
[1742530460454,3.2078,1983.6,1983.5,2.3614]
[1742530460757,53.78095673,1984.2,1983.9,1.00859]
[1742530460758,4.21636,1984.0,1983.9,1.00859]
[1742530461059,7.7299,1984.0,1983.9,1.00859]
[1742530461565,7.7299,1984.0,1983.9,2.41279]
[1742530461861,8.73844,1984.0,1983.9,2.41279]
[1742530465462,5.50344,1984.0,1983.9,2.41279]
[1742530475766,4.4949,1984.0,1983.9,2.41279]
[1742530476161,4.4949,1984.0,1983.9,1.4042]
[1742530476162,5.50344,1984.0,1983.9,1.4042]
[1742530476466,1.00866,1983.8,1983.7,1.0087]
[1742530476659,2.42713,1983.9,1983.8,1.00865]
[1742530476863,4.23063,1983.9,1983.8,1.00865]
[1742530477053,4.23059,1983.9,1983.8,1.00865]
[1742530480667,3.222,1983.9,1983.8,1.00865]
[1742530481967,3.2078,1984.0,1983.9,1.00859]
[1742530482166,3.2078,1984.0,1983.9,2.36999]
[1742530486869,4.21634,1984.0,1983.9,2.36999]
[1742530487373,4.21634,1984.0,1983.9,1.3614]
[1742530487769,4.21634,1984.0,1983.9,2.36999]
[1742530487969,3.2078,1984.0,1983.9,2.36999]
[1742530488769,4.21634,1984.0,1983.9,2.36999]
[1742530488969,4.538,1984.0,1983.9,2.36999]
[1742530489170,5.54654,1984.0,1983.9,2.36999]
[1742530489373,4.538,1984.0,1983.9,2.36999]
[1742530490573,5.54654,1984.0,1983.9,2.36999]
[1742530491466,4.538,1984.0,1983.9,2.36999]
[1742530493172,1.3302,1984.0,1983.9,2.36999]